lending/lending_fUSD_20240219
["ID","MTS","AMOUNT","RATE_DAILY","PERIOD"]
[314467270,1708369845809,-151.0,0.0004098,14]
[314467272,1708369845819,-289.105978,0.0004098,14]
[314467274,1708369845828,-289.105978,0.0004098,14]
[314467276,1708369845837,-527.981775,0.0004098,14]
[314467278,1708369845847,-527.981775,0.0004098,14]
[314467280,1708369845858,-271.335088,0.0004098,14]
[314467282,1708369845868,-339.768918,0.0004098,14]
[314467284,1708369845877,-271.335088,0.0004098,14]
[314467286,1708369845886,-339.768918,0.0004098,14]
[314467288,1708369845895,-151.0,0.0004098,14]
[314467290,1708369845904,-177.873726,0.0004098,14]
[314467292,1708369845913,-177.873726,0.0004098,14]
[314467294,1708369845923,-151.0,0.0004098,14]
[314467296,1708369845932,-285.525516,0.0004098,14]
[314467298,1708369845941,-151.0,0.0004098,14]
[314467300,1708369845950,-151.0,0.0004098,14]
[314467302,1708369845959,-151.0,0.0004098,14]
[314467304,1708369845968,-151.0,0.0004098,14]
[314467306,1708369845977,-194.11904,0.0004098,14]
[314467308,1708369845987,-151.0,0.0004098,14]
[314467310,1708369845996,-995.33519,0.0004098,14]
[314467312,1708369846006,-995.33519,0.0004098,14]
[314467314,1708369846015,-151.0,0.0004098,14]
[314467316,1708369846024,-151.0,0.0004098,14]
[314467318,1708369846033,-151.0,0.0004098,14]
[314467320,1708369846043,-414.585662,0.0004098,14]
[314467322,1708369846052,-414.585662,0.0004098,14]
[314467324,1708369846062,-151.0,0.0004098,14]
[314467326,1708369846071,-151.0,0.0004098,14]
[314467328,1708369846081,-151.0,0.0004098,14]
[314467330,1708369846091,-151.0,0.0004098,14]
[314467332,1708369846100,-151.0,0.0004098,14]
[314467334,1708369846110,-308.20164,0.0004098,14]
[314467336,1708369846119,-332.589934,0.0004098,14]
[314467338,1708369846128,-308.20164,0.0004098,14]
[314467340,1708369846138,-332.589934,0.0004098,14]
[314467342,1708369846147,-151.0,0.0004098,14]
[314467344,1708369846157,-151.0,0.0004098,14]
[314467346,1708369846166,-151.0,0.0004098,14]
[314467348,1708369846175,-151.0,0.0004098,14]
[314467350,1708369846184,-2288.604508,0.0004098,14]
[314467352,1708369846194,-151.0,0.0004098,14]
[314467354,1708369846203,-151.0,0.0004098,14]
[314467356,1708369846212,-2288.604508,0.0004098,14]
[314467358,1708369846222,-151.0,0.0004098,14]
[314467360,1708369846231,-791.200681,0.0004098,14]
[314467362,1708369846242,-791.200681,0.0004098,14]
[314467364,1708369846251,-156.537634,0.0004098,14]
[314467366,1708369846260,-151.0,0.0004098,14]
[314467368,1708369846272,-151.0,0.0004098,14]
[314467370,1708369846282,-156.537634,0.0004098,14]
[314467372,1708369846292,-151.0,0.0004098,14]
[314467374,1708369846301,-151.0,0.0004098,14]
[314467376,1708369846310,-151.0,0.0004098,14]
[314467378,1708369846320,-220.748042,0.0004098,14]
[314467380,1708369846330,-3246.294909,0.0004098,14]
[314467382,1708369846343,-151.0,0.0004098,14]
[314467384,1708369846353,-161.0,0.00040985,7]
[314467386,1708369846363,-151.0,0.00040991,4]
[314467388,1708369846373,-10000.0,0.00041,4]
[314467390,1708369846383,-950.0,0.00041,3]
[314467392,1708369846393,-206.0,0.00041047,23]
[314467393,1708369846402,-260.30003262,0.00041096,2]
[314467395,1708369846412,-22148.55,0.00041096,5]
[314467398,1708369846422,-183.0,0.00041096,2]
[314467400,1708369846432,-151.11,0.00041096,2]
[314467401,1708369846441,-180.348861,0.00041097,30]
[314467403,1708369846451,-18797.54,0.000411,7]
[314467405,1708369846461,-152.98,0.000411,4]
[314467407,1708369846470,-152.98,0.000411,4]
[314467409,1708369846479,-152.98,0.000411,4]
[314467411,1708369846490,-152.98,0.000411,4]
[314467413,1708369846499,-152.98,0.000411,4]
[314467415,1708369846508,-152.98,0.000411,4]
[314467417,1708369846517,-1461.6,0.000411,4]
[314467419,1708369846527,-1461.6,0.000411,4]
[314467421,1708369846536,-1461.6,0.000411,4]
[314467423,1708369846545,-1461.6,0.000411,4]
[314467425,1708369846555,-1461.6,0.000411,4]
[314467427,1708369846567,-1461.6,0.000411,4]
[314467429,1708369846577,-1461.6,0.000411,4]
[314467431,1708369846587,-1461.6,0.000411,4]
[314467433,1708369846596,-1461.6,0.000411,4]
[314467435,1708369846605,-1461.6,0.000411,4]
[314467437,1708369846614,-1461.6,0.000411,4]
[314467439,1708369846623,-1461.6,0.000411,4]
[314467441,1708369846633,-1461.6,0.000411,4]
[314467443,1708369846642,-1461.6,0.000411,4]
[314467445,1708369846651,-1461.6,0.000411,4]
[314467447,1708369846661,-1461.6,0.000411,4]
[314467449,1708369846678,-1461.6,0.000411,4]
[314467451,1708369846689,-1461.6,0.000411,4]
[314467453,1708369846699,-1461.6,0.000411,4]
[314467455,1708369846708,-1461.6,0.000411,4]
[314467457,1708369846717,-557.56157517,0.000411,2]
[314467459,1708369846727,-3644.78,0.000411,2]
[314467483,1708369846944,-3644.78,0.000411,2]
[314467485,1708369846954,-3644.78,0.000411,2]
[314467487,1708369846963,-3644.78,0.000411,2]
[314467489,1708369846972,-3644.78,0.000411,2]
[314467491,1708369846982,-3644.78,0.000411,2]
[314467493,1708369846993,-3644.78,0.000411,2]
[314467495,1708369847002,-3644.78,0.000411,2]
[314467497,1708369847012,-3644.78,0.000411,2]
[314467499,1708369847020,-3644.78,0.000411,2]
[314467501,1708369847030,-1044.92069636,0.00041152,15]
[314467503,1708369847039,-1039.57,0.000412,2]
[314467505,1708369847048,-1000.0,0.000412,5]
[314467507,1708369847057,-48319.53,0.000413,7]
[314467508,1708369847067,-150.0,0.00041384,2]
[314467509,1708369847075,-880.0,0.0004152,2]
[314467510,1708369847084,-2972.08293337,0.00041643,120]
[314467511,1708369847094,-1044.92069636,0.00041685,16]
[314467512,1708369847103,-247.77235427,0.00041739,10]
[314467513,1708369847113,-1321.46,0.000418,7]
[314467514,1708369847122,-69344.81,0.000418,7]
[314467515,1708369847131,-151.0,0.00041827,2]
[314467516,1708369847140,-218.0,0.0004189,3]
[314467517,1708369847149,-150.5,0.0004189,120]
[314467518,1708369847158,-150.5,0.0004189,120]
[314467519,1708369847171,-150.5,0.000419,3]
[314467520,1708369847180,-150.5,0.000419,120]
[314467521,1708369847189,-150.5,0.000419,120]
[314467522,1708369847198,-150.5,0.0004191,3]
[314467523,1708369847207,-293.41,0.0004191,120]
[314467524,1708369847216,-211.05,0.0004191,120]
[314467526,1708369847225,-150.5,0.0004191,120]
[314467528,1708369847234,-241.24,0.0004191,120]
[314467530,1708369847243,-150.5,0.0004191,120]
[314467532,1708369847253,-153.06036095,0.00041911,13]
[314467534,1708369847262,-385.55466859,0.00041916,30]
[314467536,1708369847271,-203.0,0.0004197,30]
[314467538,1708369847279,-150.5,0.0004198,30]
[314467540,1708369847289,-150.5,0.0004199,30]
[314467542,1708369847298,-200.0,0.00042,2]
[314467544,1708369847307,-2691.0,0.00042013,2]
[314467546,1708369847315,-1867.0,0.00042013,2]
[314467548,1708369847325,-164.177,0.00042013,2]
[314467550,1708369847337,-842.0,0.00042013,2]
[314467552,1708369847348,-1255.0,0.00042013,2]
[314467554,1708369847357,-598.0,0.00042013,2]
[314467556,1708369847367,-274.794,0.00042013,2]
[314467558,1708369847375,-1951.0,0.00042013,2]
[314467560,1708369847384,-1231.0,0.00042013,2]
[314467562,1708369847393,-858.0,0.00042013,2]
[314467564,1708369847402,-276.0,0.00042013,2]
[314467566,1708369847412,-429.0,0.00042013,2]
[314467568,1708369847421,-1005.0,0.00042013,2]
[314467569,1708369847430,-1138.0,0.00042013,2]
[314467572,1708369847440,-321.0,0.00042013,2]
[314467573,1708369847449,-2887.0,0.00042013,2]
[314467575,1708369847459,-150.0,0.00042013,2]
[314467577,1708369847468,-337.0,0.00042013,2]
[314467579,1708369847478,-454.0,0.00042013,2]
[314467582,1708369847488,-308.434,0.00042013,2]
[314467584,1708369847497,-27888.47947991,0.0004203,4]
[314467586,1708369847506,-438.8,0.00042092,15]
[314467588,1708369847515,-2030.60530175,0.00042141,5]
[314467590,1708369847524,-1044.92069636,0.00042217,16]
[314467592,1708369847534,-607.67553856,0.00042319,10]
[314467594,1708369847543,-150.0,0.00042394,2]
[314467596,1708369847552,-1608.1189807,0.000425,60]
[314467598,1708369847561,-18797.54,0.000425,7]
[314467600,1708369847570,-48319.53,0.000425,7]
[314467602,1708369847579,-1044.92069636,0.00042749,17]
[314467604,1708369847587,-1000.0,0.00042751,2]
[314467606,1708369847596,-748.75,0.00042753,2]
[314467608,1708369847605,-989.92027327,0.00042871,5]
[314467610,1708369847614,-153.06036095,0.0004291,17]
[314467612,1708369847624,-1321.46,0.00043,7]
[314467614,1708369847633,-69344.81,0.00043,7]
[314467616,1708369847643,-1000.0,0.00043,3]
[314467618,1708369847651,-150.0,0.000432,30]
[314467620,1708369847660,-150.0,0.000432,30]
[314467622,1708369847669,-150.0,0.000432,30]
[314467624,1708369847678,-150.0,0.000432,30]
[314467626,1708369847687,-1044.92069636,0.00043281,18]
[314467628,1708369847696,-153.83,0.00043291,2]
[314467630,1708369847705,-152.98,0.000434,4]
[314467632,1708369847714,-152.98,0.000434,4]
[314467634,1708369847723,-152.98,0.000434,4]
[314467636,1708369847732,-152.98,0.000434,4]
[314467638,1708369847742,-152.98,0.000434,4]
[314467640,1708369847751,-152.98,0.000434,4]
[314467642,1708369847760,-1461.6,0.000434,4]
[314467644,1708369847768,-1461.6,0.000434,4]
[314467646,1708369847777,-1461.6,0.000434,4]
[314467648,1708369847786,-1461.6,0.000434,4]
[314467650,1708369847796,-1461.6,0.000434,4]
[314467652,1708369847805,-1461.6,0.000434,4]
[314467654,1708369847814,-1461.6,0.000434,4]
[314467656,1708369847823,-1461.6,0.000434,4]
[314467658,1708369847831,-1461.6,0.000434,4]
[314467660,1708369847840,-1461.6,0.000434,4]
[314467661,1708369847850,-1461.6,0.000434,4]
[314467663,1708369847859,-1461.6,0.000434,4]
[314467665,1708369847868,-1461.6,0.000434,4]
[314467667,1708369847877,-1461.6,0.000434,4]
[314467669,1708369847886,-1461.6,0.000434,4]
[314467672,1708369847897,-1461.6,0.000434,4]
[314467674,1708369847906,-1461.6,0.000434,4]
[314467676,1708369847915,-1461.6,0.000434,4]
[314467678,1708369847924,-1461.6,0.000434,4]
[314467680,1708369847934,-1461.6,0.000434,4]
[314467682,1708369847943,-150.0,0.00043403,2]
[314467684,1708369847952,-1119.29277273,0.0004343,2]
[314467686,1708369847960,-5000.0,0.00043532,2]
[314467688,1708369847969,-2030.60530175,0.00043719,5]
[314467690,1708369847978,-1359.82,0.00043772,2]
[314467692,1708369847988,-10000.0,0.000438,2]
[314467693,1708369847998,-1500.0,0.000438,2]
[314467695,1708369848007,-500.0,0.000438,2]
[314467697,1708369848017,-1183.0,0.000438,2]
[314467699,1708369848026,-256.0,0.000438,2]
[314467701,1708369848035,-776.0,0.000438,2]
[314467703,1708369848046,-1659.5661555,0.000438,2]
[314467705,1708369848055,-5000.0,0.000438,120]
[314467707,1708369848064,-2000.0,0.000438,2]
[314467709,1708369848073,-363.0,0.000438,2]
[314467711,1708369848082,-477.0,0.000438,2]
[314467713,1708369848091,-4113.0,0.000438,30]
[314467715,1708369848100,-784.0,0.000438,30]
[314467717,1708369848109,-1044.92069636,0.00043814,18]
[314467719,1708369848118,-800.0,0.00043835,2]
[314467721,1708369848127,-500.0,0.0004389,30]
[314467723,1708369848136,-153.06036095,0.00043908,21]
[314467725,1708369848145,-1039.57,0.0004394,2]
[314467727,1708369848155,-10000.0,0.00044,10]
[314467729,1708369848163,-44356.81859413,0.00044,3]
[314467731,1708369848173,-4281.40666433,0.00044,4]
[314467733,1708369848182,-17726.6114698,0.00044,8]
[314467735,1708369848191,-15894.0,0.00044,7]
[314467737,1708369848200,-1200.43445229,0.00044,2]
[314467739,1708369848210,-58000.0,0.00044018,5]
[314467741,1708369848219,-200.0,0.000441,2]
[314467743,1708369848228,-247.77235427,0.00044107,11]
[314467745,1708369848239,-150.0,0.00044199,4]
[314467747,1708369848248,-164.40336397,0.00044199,4]
[314467749,1708369848258,-48319.53,0.000442,7]
[314467751,1708369848267,-27888.47947991,0.00044252,6]
[314467753,1708369848276,-1044.92069636,0.00044346,19]
[314467755,1708369848285,-1321.46,0.000444,7]
[314467757,1708369848294,-69344.81,0.000444,7]
[314467760,1708369848304,-150.0,0.00044412,2]
[314467761,1708369848313,-170.40616824,0.00044497,11]
[314467764,1708369848325,-18797.54,0.000445,7]
[314467766,1708369848335,-150.0,0.00044597,30]
[314467768,1708369848344,-800.0,0.00044657,2]
[314467769,1708369848353,-200.0,0.00044734,10]
[314467772,1708369848363,-150.0,0.00044761,2]
[314467774,1708369848372,-150.0,0.00044765,2]
[314467776,1708369848382,-206.0,0.00044838,31]
[314467778,1708369848391,-5056.41633167,0.00044851,18]
[314467780,1708369848400,-1044.92069636,0.00044878,20]
[314467782,1708369848409,-607.67553856,0.0004488,12]
[314467784,1708369848419,-989.92027327,0.0004488,6]
[314467786,1708369848429,-154.4144884,0.000449,41]
[314467788,1708369848438,-153.06036095,0.00044907,25]
[314467790,1708369848447,-150.0,0.00044979,4]
[314467792,1708369848456,-164.40336397,0.00044979,4]
[314467794,1708369848465,-150.0,0.00044979,4]
[314467796,1708369848474,-164.40336397,0.00044979,4]
[314467798,1708369848483,-1194378.2246515,0.0004498,4]
[314467815,1708369848633,-232.96289219,0.0004,2]
[314467817,1708369848642,-95.42081515,0.0004098,14]
[314467819,1708369848653,-3150.87409385,0.0004098,14]
[314467821,1708369848662,-2693.18090618,0.0004498,4]
[314467824,1708369848673,-6481.5,0.0004498,4]
[314467839,1708369848808,-56144.82824123,0.0004498,4]
[314467842,1708369848821,-296.06075555,0.0004498,4]
[314467844,1708369848833,-549.599999,0.0004498,4]
[314467846,1708369848845,-2176.75,0.0004498,4]
[314467849,1708369848859,-771.52948442,0.0004498,4]
[314467967,1708369849951,-476.38283507,0.00031,2]
[314467969,1708369849962,-23.60716493,0.00031,2]
[314467971,1708369849972,-227.25,0.00033921,2]
[314467973,1708369849980,-1680.03284645,0.00038633,15]
[314467977,1708369850011,-8639.1378042,0.00038633,15]
[314467979,1708369850020,-232.96289219,0.0004,2]
[314467981,1708369850029,-232.96289219,0.0004,2]
[314467983,1708369850038,-232.96289219,0.0004,2]
[314467985,1708369850047,-232.96289219,0.0004,2]
[314467987,1708369850055,-232.96289219,0.0004,2]
[314467989,1708369850064,-232.96289219,0.0004,2]
[314467991,1708369850073,-232.96289219,0.0004,2]
[314467993,1708369850082,-232.96289219,0.0004,2]
[314467995,1708369850091,-232.96289219,0.0004,2]
[314467997,1708369850099,-232.96289219,0.0004,2]
[314467999,1708369850108,-232.96289219,0.0004,2]
[314468001,1708369850117,-232.96289219,0.0004,2]
[314468003,1708369850126,-232.96289219,0.0004,2]
[314468004,1708369850135,-232.96289219,0.0004,2]
[314468006,1708369850145,-500.0,0.00041096,7]
[314468008,1708369850154,-500.0,0.00041594,7]
[314468010,1708369850163,-500.0,0.00042092,7]
[314468012,1708369850173,-500.0,0.0004259,7]
[314468014,1708369850182,-30221.22289923,0.0004498,4]
[314468068,1708369850731,-617.07022428,0.0004498,4]
[314468069,1708369850746,-500.0,0.0004498,4]
[314468070,1708369850766,-427.21949388,0.00027999,15]
[314468071,1708369850775,-211.69677059,0.00027999,15]
[314468072,1708369850787,-215.52272329,0.00027999,15]
[314468073,1708369850796,-5414.62707176,0.0004498,4]
[314468099,1708369851094,-151.0,0.00039178,14]
[314468101,1708369851105,-232.96289219,0.0004,2]
[314468103,1708369851114,-232.96289219,0.0004,2]
[314468105,1708369851124,-232.96289219,0.0004,2]
[314468106,1708369851133,-232.96289219,0.0004,2]
[314468109,1708369851143,-151.0,0.00040616,14]
[314468111,1708369851152,-151.0,0.00040616,14]
[314468113,1708369851162,-500.0,0.00043088,7]
[314468115,1708369851171,-607987.29580757,0.0004498,4]
[314468117,1708369851183,-180405.73439242,0.0004498,4]
[314468119,1708369851193,-151.0,0.0004498,14]
[314468121,1708369851203,-151.0,0.0004498,14]
[314468123,1708369851212,-151.0,0.0004498,14]
[314468125,1708369851222,-151.0,0.0004498,14]
[314468127,1708369851233,-151.0,0.0004498,14]
[314468129,1708369851243,-157.286432,0.0004498,14]
[314468131,1708369851252,-157.286432,0.0004498,14]
[314468133,1708369851261,-333.753793,0.0004498,14]
[314468135,1708369851271,-333.753793,0.0004498,14]
[314468137,1708369851280,-162.488696,0.0004498,14]
[314468139,1708369851289,-162.488696,0.0004498,14]
[314468141,1708369851298,-151.0,0.0004498,14]
[314468143,1708369851307,-151.0,0.0004498,14]
[314468145,1708369851316,-151.0,0.0004498,14]
[314468147,1708369851327,-151.0,0.0004498,2]
[314468149,1708369851338,-151.0,0.0004498,14]
[314468152,1708369851348,-151.0,0.0004498,14]
[314468154,1708369851358,-5585.54765977,0.0004498,2]
[314468156,1708369851374,-634.66,0.0004498,2]
[314468160,1708369851405,-595.6030002,0.0004498,2]
[314468163,1708369851418,-2440.917,0.0004498,2]
[314468165,1708369851431,-472.37513255,0.0004498,2]
[314468167,1708369851443,-366.43596909,0.0004498,2]
[314468170,1708369851460,-650.0,0.0004498,2]
[314468173,1708369851476,-232.96289219,0.0004,2]
[314468175,1708369851485,-529.63358842,0.0004498,2]
[314468179,1708369851508,-151.0,0.0004098,14]
[314468181,1708369851518,-765.02262091,0.0004498,2]
[314468183,1708369851527,-289.105978,0.0004498,14]
[314468185,1708369851538,-289.105978,0.0004498,14]
[314468187,1708369851547,-527.981775,0.0004498,14]
[314468189,1708369851556,-527.981775,0.0004498,14]
[314468191,1708369851567,-271.335088,0.0004498,14]
[314468193,1708369851576,-339.768918,0.0004498,14]
[314468195,1708369851585,-271.335088,0.0004498,14]
[314468197,1708369851594,-339.768918,0.0004498,14]
[314468199,1708369851604,-151.0,0.0004498,14]
[314468201,1708369851613,-177.873726,0.0004498,14]
[314468203,1708369851622,-177.873726,0.0004498,14]
[314468205,1708369851632,-151.0,0.0004498,14]
[314468207,1708369851641,-151.0,0.0004498,14]
[314468209,1708369851650,-151.0,0.0004498,14]
[314468211,1708369851660,-151.0,0.0004498,14]
[314468214,1708369851669,-154.568955,0.0004498,14]
[314468216,1708369851679,-995.33519,0.0004498,14]
[314468218,1708369851688,-995.33519,0.0004498,14]
[314468220,1708369851698,-151.0,0.0004498,14]
[314468222,1708369851708,-151.0,0.0004498,14]
[314468224,1708369851717,-414.585662,0.0004498,14]
[314468226,1708369851728,-414.585662,0.0004498,14]
[314468228,1708369851738,-151.0,0.0004498,14]
[314468230,1708369851750,-151.0,0.0004498,14]
[314468232,1708369851759,-151.0,0.0004498,14]
[314468234,1708369851769,-151.0,0.0004498,14]
[314468236,1708369851778,-151.0,0.0004498,14]
[314468238,1708369851787,-308.20164,0.0004498,14]
[314468240,1708369851796,-332.589934,0.0004498,14]
[314468241,1708369851805,-308.20164,0.0004498,14]
[314468243,1708369851814,-332.589934,0.0004498,14]
[314468245,1708369851823,-151.0,0.0004498,14]
[314468247,1708369851833,-151.0,0.0004498,14]
[314468249,1708369851842,-151.0,0.0004498,14]
[314468252,1708369851853,-151.0,0.0004498,14]
[314468254,1708369851862,-2288.604508,0.0004498,14]
[314468256,1708369851871,-151.0,0.0004498,14]
[314468258,1708369851880,-223.074741,0.0004498,14]
[314468260,1708369851889,-2288.604508,0.0004498,14]
[314468262,1708369851899,-151.0,0.0004498,14]
[314468264,1708369851908,-791.200681,0.0004498,14]
[314468266,1708369851916,-791.200681,0.0004498,14]
[314468268,1708369851926,-156.537634,0.0004498,14]
[314468270,1708369851936,-151.0,0.0004498,14]
[314468272,1708369851945,-151.0,0.0004498,14]
[314468274,1708369851955,-156.537634,0.0004498,14]
[314468276,1708369851964,-151.0,0.0004498,14]
[314468278,1708369851973,-151.0,0.0004498,14]
[314468280,1708369851982,-151.0,0.0004498,14]
[314468282,1708369851992,-3246.294909,0.0004498,14]
[314468284,1708369852001,-3246.294909,0.0004498,14]
[314468286,1708369852011,-500.0,0.00045,4]
[314468288,1708369852019,-405.12230858,0.00045,4]
[314468290,1708369852029,-1050.0,0.00045,3]
[314468292,1708369852038,-10000.0,0.00045,4]
[314468294,1708369852048,-1948.0,0.00045013,2]
[314468296,1708369852057,-932.722,0.00045013,2]
[314468298,1708369852066,-748.75,0.00045017,2]
[314468300,1708369852075,-152.266666,0.00045144,30]
[314468302,1708369852085,-163.432889,0.00045144,30]
[314468304,1708369852094,-1000.0,0.00045202,30]
[314468306,1708369852103,-114.48102137,0.00045205,2]
[314468308,1708369852115,-81.99897863,0.00045205,2]
[314468310,1708369852124,-300.0,0.00045226,2]
[314468312,1708369852133,-150.0,0.00045235,2]
[314468314,1708369852144,-2030.60530175,0.00045298,5]
[314468316,1708369852153,-150.0,0.00045364,2]
[314468318,1708369852162,-300.0,0.00045396,2]
[314468320,1708369852172,-1056.77210642,0.000454,7]
[314468322,1708369852181,-852.77199121,0.0004541,20]
[314468424,1708369853127,-232.96289219,0.0004,2]
[314468427,1708369853137,-232.96289219,0.0004,2]
[314468429,1708369853146,-232.96289219,0.0004,2]
[314468431,1708369853156,-232.96289219,0.0004,2]
[314468433,1708369853165,-232.96289219,0.0004,2]
[314468435,1708369853176,-232.96289219,0.0004,2]
[314468437,1708369853185,-232.96289219,0.0004,2]
[314468439,1708369853194,-232.96289219,0.0004,2]
[314468441,1708369853203,-232.96289219,0.0004,2]
[314468443,1708369853212,-9785.19,0.000408,30]
[314468445,1708369853221,-500.0,0.00043587,7]
[314468447,1708369853231,-500.0,0.00044085,7]
[314468448,1708369853241,-500.0,0.00044583,7]
[314468451,1708369853251,-500.0,0.00045081,7]
[314468452,1708369853260,-192.14870515,0.0004541,20]
[314468454,1708369853270,-154.41448838,0.00045416,44]
[314468456,1708369853279,-150.0,0.00045422,2]
[314468458,1708369853288,-150.0,0.00045442,2]
[314468461,1708369853299,-800.0,0.00045479,2]
[314468463,1708369853308,-150.0,0.00045493,2]
[314468465,1708369853319,-10000.0,0.000455,4]
[314468467,1708369853328,-150.0,0.00045508,2]
[314468469,1708369853341,-150.0,0.00045523,2]
[314468471,1708369853350,-300.0,0.00045543,2]
[314468473,1708369853359,-500.0,0.00045579,7]
[314468475,1708369853372,-150.0,0.00045596,2]
[314468477,1708369853382,-1155.29997678,0.000456,7]
[314468479,1708369853394,-1299.9890811,0.000456,7]
[314468482,1708369853417,-232.96289219,0.0004,2]
[314468484,1708369853427,-45864.24094212,0.000456,7]
[314468486,1708369853437,-1321.46,0.000456,7]
[314468489,1708369853446,-69344.81,0.000456,7]
[314468491,1708369853457,-152.98,0.000456,5]
[314468493,1708369853465,-152.98,0.000456,5]
[314468495,1708369853474,-152.98,0.000456,5]
[314468496,1708369853483,-152.98,0.000456,5]
[314468498,1708369853493,-152.98,0.000456,5]
[314468500,1708369853503,-152.98,0.000456,5]
[314468502,1708369853512,-1461.6,0.000456,5]
[314468504,1708369853521,-1461.6,0.000456,5]
[314468506,1708369853531,-1461.6,0.000456,5]
[314468508,1708369853540,-1461.6,0.000456,5]
[314468510,1708369853549,-1461.6,0.000456,5]
[314468513,1708369853559,-1461.6,0.000456,5]
[314468514,1708369853568,-1461.6,0.000456,5]
[314468516,1708369853577,-1461.6,0.000456,5]
[314468518,1708369853586,-1461.6,0.000456,5]
[314468520,1708369853594,-1461.6,0.000456,5]
[314468522,1708369853604,-1461.6,0.000456,5]
[314468524,1708369853613,-1461.6,0.000456,5]
[314468526,1708369853622,-1461.6,0.000456,5]
[314468528,1708369853631,-1461.6,0.000456,5]
[314468530,1708369853640,-1461.6,0.000456,5]
[314468532,1708369853650,-1461.6,0.000456,5]
[314468534,1708369853659,-1461.6,0.000456,5]
[314468536,1708369853668,-1461.6,0.000456,5]
[314468538,1708369853677,-1461.6,0.000456,5]
[314468540,1708369853686,-1461.6,0.000456,5]
[314468542,1708369853696,-150.0,0.00045654,2]
[314468544,1708369853705,-150.0,0.00045665,2]
[314468546,1708369853715,-150.0,0.00045701,2]
[314468548,1708369853725,-150.0,0.00045768,2]
[314468550,1708369853734,-150.0,0.00045784,2]
[314468552,1708369853745,-150.0,0.00045789,2]
[314468554,1708369853754,-150.0,0.00045798,2]
[314468556,1708369853763,-438.8,0.00045828,15]
[314468558,1708369853772,-150.0,0.00045884,2]
[314468560,1708369853781,-150.0,0.00045889,2]
[314468562,1708369853791,-255.0,0.000459,2]
[314468564,1708369853800,-398.85365689,0.00045912,10]
[314468570,1708369853847,-13.34955309,0.00045912,10]
[314468574,1708369853872,-671.64998418,0.00045912,10]
[314468576,1708369853881,-150.0,0.0004593,2]
[314468578,1708369853890,-1044.92069636,0.00045943,21]
[314468580,1708369853899,-154.41448838,0.00045952,46]
[314468582,1708369853908,-150.0,0.00045991,2]
[314468584,1708369853917,-471.88748022,0.00045998,2]
[314468599,1708369854052,-166.208607,0.00039178,14]
[314468601,1708369854062,-232.96289219,0.0004,2]
[314468603,1708369854072,-396.82721502,0.00045998,2]
[314468604,1708369854084,-29.86191475,0.00045998,2]
[314468605,1708369854093,-500.0,0.00046,5]
[314468606,1708369854103,-200.0,0.00046,21]
[314468607,1708369854112,-2458.33755729,0.00046,30]
[314468608,1708369854136,-232.96289219,0.0004,2]
[314468609,1708369854145,-1541.66244271,0.00046,30]
[314468610,1708369854155,-166.94050383,0.00046038,30]
[314468611,1708369854166,-156.89813651,0.00046059,30]
[314468612,1708369854176,-500.0,0.00046077,7]